bitfinex/quotes_ETHUSD_20250424
["timestamp","ask_amount","ask_price","bid_price","bid_amount"]
[1745481495975,0.774,1756.3,1755.8,6.44569412]
[1745481499248,0.774,1756.3,1755.8,0.75028979]
[1745481499449,0.774,1756.3,1755.9,5.69494356]
[1745481499653,0.774,1756.3,1756.0,7.01430614]
[1745481501026,0.774,1756.3,1756.0,12.70893795]
[1745481501359,5.7992,1756.5,1756.1,5.69423004]
[1745481501521,0.7592,1756.5,1756.1,11.38845212]
[1745481501709,5.7982,1756.5,1756.2,6.83295193]
[1745481501904,5.7982,1756.5,1756.2,1.13884521]
[1745481502101,0.7936,1756.4,1755.8,6.44562626]
[1745481502409,0.7936,1756.4,1755.8,12.14087191]
[1745481502615,0.7936,1756.4,1755.9,5.69504345]
[1745481503206,0.7936,1756.4,1756.0,5.69472942]
[1745481503406,0.7936,1756.4,1756.1,0.56947294]
[1745481503655,0.7936,1756.4,1756.1,6.26376602]
[1745481503841,0.7936,1756.4,1756.1,0.56947294]
[1745481504161,0.7936,1756.4,1756.1,6.26380461]
[1745481505820,5.038,1756.6,1756.2,6.44423145]
[1745481506015,5.038,1756.6,1756.3,0.64442314]
[1745481506223,0.8249,1756.5,1756.3,0.64442314]
[1745481506403,0.8249,1756.5,1756.1,0.56947294]
[1745481506615,0.8249,1756.5,1755.9,12.14015207]
[1745481506924,0.8249,1756.5,1756.0,5.69474595]
[1745481507520,0.8249,1756.5,1755.9,12.14008025]
[1745481507705,0.8249,1756.5,1755.9,12.14002305]
[1745481507901,0.8249,1756.5,1755.9,6.44514911]
[1745481508105,0.8249,1756.5,1756.0,0.64451491]
[1745481510026,0.8249,1756.5,1756.0,6.33927401]
[1745481512121,0.8249,1756.5,1756.1,6.44460077]
[1745481513319,0.8249,1756.5,1756.1,0.75028979]
[1745481513680,0.8249,1756.5,1755.7,9.96674546]
[1745481514012,0.8249,1756.5,1755.8,6.69206651]
[1745481514316,0.8249,1756.5,1755.9,5.69494299]
[1745481514501,0.8249,1756.5,1755.9,5.69486795]
[1745481514704,0.8249,1756.5,1755.9,6.44515186]
[1745481515024,0.8249,1756.5,1756.0,5.69463953]
[1745481515217,0.8249,1756.5,1755.9,0.75028979]
[1745481515422,0.8249,1756.5,1755.9,6.44531329]
[1745481515795,0.8249,1756.5,1755.9,0.75028979]
[1745481515993,0.8249,1756.5,1756.0,5.69453946]
[1745481516322,0.8249,1756.5,1756.1,6.44459744]
[1745481516502,0.8249,1756.5,1756.2,0.64445974]
[1745481517294,0.8249,1756.5,1756.1,6.44451959]
[1745481517506,0.8249,1756.5,1756.1,5.6942298]
[1745481517704,0.8249,1756.5,1755.9,5.69488691]
[1745481518082,1.12217544,1756.5,1755.9,5.69488691]
[1745481518521,0.8074,1756.4,1755.9,5.69488691]
[1745481518696,0.8074,1756.4,1755.9,7.08730534]
[1745481519922,0.8074,1756.4,1756.0,5.69461948]
[1745481520328,0.8074,1756.4,1756.0,11.38918636]
[1745481520487,5.8414,1756.4,1756.1,5.69441312]
[1745481520685,5.8414,1756.4,1756.0,5.69455423]
[1745481521011,5.8414,1756.4,1756.1,6.26382502]
[1745481521214,5.8414,1756.4,1756.1,0.56945542]
[1745481521383,5.8414,1756.4,1756.1,6.2637494]
[1745481521985,5.8414,1756.4,1756.1,0.56945542]
[1745481522486,5.8414,1756.4,1756.1,6.26385487]
[1745481522731,5.8414,1756.4,1756.2,0.62638549]
[1745481524838,5.8414,1756.4,1755.9,4.39241843]
[1745481524839,5.034,1756.4,1755.9,4.39241843]
[1745481525042,0.7816,1756.3,1755.9,10.08748367]
[1745481525402,0.7816,1756.3,1755.9,1.39241843]
[1745481525602,0.7816,1756.3,1755.7,5.69554721]
[1745481525805,0.7816,1756.3,1755.7,5.69552753]
[1745481526616,0.7816,1756.3,1755.8,5.69540247]
[1745481528763,0.7816,1756.3,1755.7,5.69558898]
[1745481528915,0.7816,1756.3,1755.7,5.69551504]
[1745481529258,0.7816,1756.3,1755.7,6.98647515]
[1745481529542,0.7816,1756.3,1755.7,6.98646962]
[1745481532043,0.7816,1756.3,1755.5,8.69628694]
[1745481532247,0.8011,1756.2,1755.4,6.44680332]
[1745481532442,0.8011,1756.2,1755.5,5.69623369]
[1745481533029,0.8011,1756.2,1755.5,11.39242079]
[1745481533233,0.8011,1756.2,1755.5,11.39234821]
[1745481533435,0.8011,1756.2,1755.5,12.60661201]
[1745481533635,0.8011,1756.2,1755.6,5.69601749]
[1745481534217,0.8011,1756.2,1755.5,6.91042491]
[1745481534650,0.8011,1756.2,1755.5,1.2142638]
[1745481535711,0.8011,1756.2,1755.5,6.91064378]
[1745481537047,0.7926,1756.1,1755.5,1.2142638]
[1745481537213,0.7926,1755.9,1755.5,1.2142638]
[1745481538460,0.7926,1755.9,1755.5,6.91055517]
[1745481539561,0.7926,1755.9,1755.6,5.69600619]
[1745481539763,0.7926,1755.9,1755.6,7.70695212]
[1745481540470,0.7926,1755.9,1755.7,5.69570169]
[1745481540769,0.7926,1755.9,1755.7,5.69554952]
[1745481541126,5.805,1756.1,1755.7,5.69554952]
[1745481541331,5.805,1756.1,1755.7,11.39109904]
[1745481541559,5.805,1756.1,1755.7,12.73129261]
[1745481541874,5.805,1756.1,1755.8,5.69531603]
[1745481542172,0.77,1756.1,1755.7,7.03574053]
[1745481542460,0.77,1756.1,1755.7,12.73124946]
[1745481543668,0.77,1756.1,1755.7,7.03571343]
[1745481544134,0.77,1756.1,1755.7,5.69550893]
[1745481544339,0.77,1756.1,1755.7,11.39101917]
[1745481544669,0.77,1756.1,1755.7,11.39101691]
[1745481545365,0.77,1756.1,1755.7,5.69550614]
[1745481545569,0.77,1756.1,1755.8,5.69536726]
[1745481545864,0.77,1756.1,1755.7,5.69550614]
[1745481546068,0.77,1756.1,1755.7,6.90967298]
[1745481546672,0.77,1756.1,1755.8,5.6954072]
[1745481547046,0.77,1756.1,1755.7,12.60519832]
[1745481547373,0.77,1756.1,1755.7,6.90967298]
[1745481547535,0.75817663,1756.1,1755.7,6.90967298]
[1745481547737,0.75817663,1756.1,1755.8,0.6909673]
[1745481547962,0.75817663,1756.1,1755.5,0.75028979]
[1745481548170,0.75817663,1756.1,1755.4,5.6965054]
[1745481548471,0.75817663,1756.1,1755.5,5.69625347]
[1745481549339,0.75817663,1756.1,1755.6,5.69593623]
[1745481549532,0.75817663,1756.1,1755.7,5.69561982]
[1745481549872,0.75817663,1756.1,1755.7,1.13915561]
[1745481550273,0.75817663,1756.1,1755.7,6.83476642]
[1745481551782,0.75817663,1756.1,1755.7,1.13915561]
[1745481551985,0.7653,1756.0,1755.3,6.44719161]
[1745481552187,0.7653,1756.0,1755.5,5.69625468]
[1745481552370,1.06264326,1756.0,1755.5,6.44654447]
[1745481552573,1.06264326,1756.0,1755.5,12.14270548]
[1745481552885,0.7653,1756.0,1755.7,6.44573881]
[1745481553793,0.7653,1756.0,1755.6,1.21427055]
[1745481554141,0.7653,1756.0,1755.5,5.69611378]
[1745481554951,0.7653,1756.0,1755.3,5.69680989]
[1745481555151,0.7653,1756.0,1755.4,6.44680124]
[1745481555362,0.7653,1756.0,1755.4,12.14334076]
[1745481555762,0.7653,1756.0,1755.4,6.44680124]
[1745481555960,0.7653,1756.0,1755.5,0.64468012]
[1745481557043,0.7653,1756.0,1755.5,6.34104396]
[1745481557385,0.7653,1756.0,1755.5,0.64468012]
[1745481558082,0.7653,1756.0,1755.5,6.34100888]
[1745481558776,0.7653,1756.0,1755.6,6.44620978]
[1745481559087,0.7653,1756.0,1755.7,0.64462098]
[1745481559555,0.7653,1756.0,1755.7,6.34015095]
[1745481560687,0.7653,1756.0,1755.7,0.64462098]
[1745481561095,0.7653,1756.0,1755.6,6.44634395]
[1745481561266,0.7653,1756.0,1755.6,12.14217637]
[1745481561466,0.7653,1756.0,1755.6,6.44612221]
[1745481561666,0.7653,1756.0,1755.6,6.44625277]
[1745481562604,0.7653,1756.0,1755.6,6.44619388]
[1745481562787,5.7963,1756.0,1755.7,6.34033793]
[1745481563291,5.7963,1756.0,1755.7,6.34014159]
[1745481566046,5.7963,1756.0,1755.5,6.34086262]
[1745481566240,5.7963,1756.0,1755.6,5.69602333]
[1745481566403,5.7963,1756.0,1755.7,5.69563146]
[1745481566604,5.7963,1756.0,1755.6,12.14207319]
[1745481566817,5.7963,1756.0,1755.6,6.44612051]
[1745481567136,5.7963,1756.0,1755.7,0.64461205]
[1745481568405,5.7963,1756.0,1755.7,6.34002552]
[1745481569097,5.7963,1756.0,1755.9,5.69508514]
[1745481569301,0.7836,1756.2,1755.9,5.69493038]
[1745481569627,0.7836,1756.2,1755.9,6.90897405]
[1745481569822,0.7836,1756.2,1756.0,5.6946302]
[1745481570535,0.7836,1756.2,1756.0,11.38921403]
[1745481570747,0.8126,1756.4,1756.0,1.53288979]
[1745481570915,0.8126,1756.4,1756.3,5.69378807]
[1745481571115,0.8126,1756.4,1756.2,6.4443601]
[1745481571319,0.8126,1756.4,1756.2,7.65822002]
[1745481571515,0.8126,1756.4,1755.9,7.65916837]
[1745481571716,0.8126,1756.4,1756.0,5.69452888]
[1745481572437,0.8126,1756.4,1756.0,11.38908897]
[1745481572737,0.8126,1756.4,1756.0,5.69452888]
[1745481573649,0.8126,1756.4,1756.0,11.38911564]
[1745481573809,0.8126,1756.4,1756.1,6.44456748]
[1745481574944,0.8126,1756.4,1756.2,5.69397049]
[1745481575546,5.031,1756.6,1756.2,5.6939346]
[1745481575744,0.8268,1756.6,1756.3,5.69356749]
[1745481575917,0.8268,1756.6,1756.4,11.38652215]
[1745481576124,0.8268,1756.6,1756.4,12.68076285]
[1745481576339,23.821,1756.7,1756.4,12.6807113]
[1745481576540,5.03,1756.7,1756.4,6.98745488]
[1745481576912,0.761,1756.8,1756.4,12.68068936]
[1745481577225,0.761,1756.8,1756.4,6.98744567]
[1745481577413,0.761,1756.8,1756.3,6.44400745]
[1745481577749,0.761,1756.8,1756.3,0.75028979]
[1745481578248,0.761,1756.8,1756.2,5.6939282]
[1745481578447,0.761,1756.8,1756.3,5.69374937]
[1745481580750,0.761,1756.8,1756.4,5.69344275]
[1745481580944,0.761,1756.8,1756.4,1.21374819]
[1745481585371,0.8299,1756.7,1756.0,5.69471478]
[1745481585541,5.69222125,1756.8,1755.8,0.75028979]
[1745481585542,5.69301226,1756.6,1755.8,0.75028979]
[1745481585735,0.8299,1756.4,1755.8,6.44557287]
[1745481585929,0.8299,1756.4,1755.9,5.69496026]
[1745481586271,0.8299,1756.4,1756.0,7.01450288]
[1745481586668,0.8299,1756.4,1756.2,0.75028979]
[1745481587130,0.8299,1756.4,1756.1,5.69440965]
[1745481588371,0.8299,1756.4,1756.1,5.69424668]
[1745481588876,0.8299,1756.4,1756.0,7.01432321]
[1745481589035,0.8299,1756.4,1756.1,6.39576584]
[1745481593386,0.8299,1756.4,1756.1,6.39564478]
[1745481593897,0.8299,1756.4,1756.2,0.75028979]
[1745481594596,0.8299,1756.4,1756.1,0.70143232]
[1745481595291,0.8299,1756.4,1756.1,6.3957778]
[1745481595501,0.8299,1756.4,1756.2,0.63957778]
[1745481595994,0.8299,1756.4,1756.1,6.39572435]
[1745481596198,0.8299,1756.4,1756.1,0.70143232]
[1745481596585,0.8299,1756.4,1756.1,6.39582716]
[1745481598000,0.8299,1756.4,1756.2,0.75028979]
[1745481599314,5.026,1756.5,1756.2,12.1382379]
[1745481599506,5.026,1756.5,1756.2,7.80509788]
[1745481600214,5.026,1756.5,1756.2,7.80506585]
[1745481600384,0.7841,1756.6,1756.4,0.75028979]
[1745481600912,5.8121,1756.7,1756.4,0.75028979]
[1745481601116,0.7861,1756.7,1756.4,0.75028979]
[1745481601302,5.8121,1756.7,1756.4,1.39467867]
[1745481601507,5.8121,1756.7,1756.4,0.75028979]
[1745481602020,0.7861,1756.7,1756.4,0.75028979]
[1745481602226,5.8121,1756.7,1756.4,0.75028979]
[1745481602401,5.8121,1756.7,1756.4,1.55258979]
[1745481602618,0.7861,1756.7,1756.4,1.55258979]
[1745481602780,0.7861,1756.7,1756.4,1.47491144]
[1745481604926,0.7861,1756.7,1756.2,9.4442524]
[1745481605228,0.7747,1756.8,1756.4,0.75028979]
[1745481605519,0.7747,1756.8,1756.4,6.44355752]
[1745481605720,5.807,1756.7,1756.1,1.45172211]
[1745481605925,5.807,1756.7,1756.1,0.70143232]
[1745481605926,0.781,1756.6,1756.1,0.70143232]
[1745481606236,0.781,1756.6,1756.1,1.45172211]
[1745481606533,0.781,1756.6,1756.2,5.69411179]
[1745481606739,0.781,1756.6,1756.2,0.71458339]
[1745481607203,5.8039,1756.8,1756.5,0.75028979]
[1745481607395,5.8039,1756.8,1756.3,1.56808979]
[1745481607600,5.8039,1756.8,1756.4,5.69323329]
[1745481608017,5.8039,1756.8,1756.5,6.44313203]
[1745481608202,5.8039,1756.8,1756.6,6.33708509]
[1745481608399,5.8357,1757.0,1756.8,5.69216757]
[1745481608610,5.8357,1757.0,1756.7,3.75028979]
[1745481608813,5.8357,1757.0,1756.6,0.6443132]
[1745481609011,5.8357,1757.0,1756.9,0.75028979]
[1745481609324,5.8357,1757.0,1756.6,3.0]
[1745481609325,5.8357,1757.0,1756.6,5.69261079]
[1745481609550,0.8017,1756.9,1756.4,3.0]
[1745481609751,0.8017,1756.9,1756.4,5.69341658]
[1745481610022,0.8017,1756.9,1756.7,0.75028979]
[1745481610222,5.022,1757.0,1756.8,5.69197187]
[1745481610591,5.022,1757.0,1756.8,11.38398981]
[1745481610788,5.022,1757.0,1756.9,0.75028979]
[1745481610986,5.022,1757.0,1756.8,5.6919931]
[1745481611184,5.022,1757.0,1756.9,0.56919931]
[1745481615007,0.791,1757.1,1756.9,0.56919931]
[1745481615229,5.022,1757.2,1756.9,1.3194891]
[1745481615388,0.8043,1757.4,1757.0,5.69134179]
[1745481615588,5.022,1757.2,1757.0,5.69134179]
[1745481615823,0.8059,1757.1,1756.9,0.75028979]
[1745481616129,0.8059,1757.1,1756.8,11.3840243]
[1745481616435,0.8059,1757.1,1756.8,5.69197482]
[1745481616635,0.8059,1757.1,1756.8,6.90543097]
[1745481616841,0.8059,1757.1,1756.8,12.59739741]
[1745481617007,5.022,1757.2,1756.9,5.6916422]
[1745481617339,5.022,1757.2,1757.0,5.69140264]
[1745481617693,0.17353562,1757.1,1757.0,5.69140264]
[1745481617891,0.17353562,1757.1,1757.0,6.90474048]
[1745481618203,5.022,1757.2,1757.0,1.21333784]
[1745481618403,5.022,1757.2,1756.9,5.69181902]
[1745481618604,0.17382654,1757.1,1756.9,5.69181902]
[1745481619047,5.022,1757.2,1756.8,0.8066]
[1745481619338,0.17382654,1757.1,1756.8,8.69215293]
[1745481619706,0.17382654,1757.1,1756.8,5.69215293]
[1745481620323,0.17382654,1757.1,1756.8,1.2960637]
[1745481620508,0.8178,1757.0,1756.8,1.2960637]
[1745481620816,0.8178,1757.0,1756.3,0.8131]
[1745481621032,0.17382654,1756.9,1756.7,5.69246567]
[1745481621199,0.17382654,1756.9,1756.8,5.69216757]
[1745481621841,5.021,1757.1,1756.8,11.38414889]
[1745481622032,5.021,1757.1,1756.9,6.83019735]
[1745481622228,5.021,1757.1,1756.9,1.13841489]
[1745481622541,5.021,1757.1,1756.8,5.6919841]
[1745481622954,5.021,1757.1,1756.8,5.69195561]
[1745481623848,5.021,1757.1,1756.7,5.6924745]
[1745481624421,0.8031,1757.0,1756.7,5.69237087]
[1745481624623,0.8031,1757.0,1756.8,0.56923709]
[1745481624823,0.8031,1757.0,1756.7,5.69237087]
[1745481625027,0.8031,1757.0,1756.2,5.69385478]
[1745481625235,0.8031,1757.0,1756.2,6.44421678]
[1745481625440,0.8031,1757.0,1756.3,3.0]
[1745481625615,0.8031,1757.0,1756.4,5.69322137]
[1745481626055,0.8031,1757.0,1756.5,5.69304513]
[1745481629656,0.8031,1757.0,1756.6,5.69277692]
[1745481629955,0.8031,1757.0,1756.5,5.69292561]
[1745481629956,5.021,1756.9,1756.5,5.69290947]
[1745481630332,5.021,1756.9,1756.5,11.38589239]
[1745481630528,5.021,1756.9,1756.4,2.18897143]
[1745481630740,5.021,1756.9,1756.7,5.69243175]
[1745481631139,0.8031,1757.0,1756.7,5.69243175]
[1745481631767,0.8031,1757.0,1756.6,12.91076575]
[1745481631982,0.8031,1757.0,1756.6,12.91069012]
[1745481632151,0.8031,1757.0,1756.6,6.44288372]
[1745481632355,0.8031,1757.0,1756.7,0.64428837]
[1745481632744,0.8031,1757.0,1756.5,5.69291993]
[1745481633268,0.7735,1756.8,1756.5,5.69291993]
[1745481633633,0.7735,1756.8,1756.5,11.3858357]
[1745481633964,0.15775687,1756.7,1756.5,5.69291577]
[1745481634169,0.7735,1756.8,1756.6,5.69281566]
[1745481634350,0.15775687,1756.7,1756.6,1.13857314]
[1745481634555,0.7735,1756.8,1756.6,6.8313888]
[1745481634857,0.15775687,1756.7,1756.6,6.8313888]
[1745481635084,0.7735,1756.8,1756.6,7.58167859]
[1745481635242,0.15775687,1756.7,1756.6,7.58167859]
[1745481635431,0.7735,1756.8,1756.6,7.58167859]
[1745481635737,0.15775687,1756.7,1756.6,7.58167859]
[1745481635941,0.7735,1756.8,1756.6,7.58167859]
[1745481636167,0.15775687,1756.7,1756.6,7.58167859]
[1745481636354,0.7735,1756.8,1756.6,7.58167859]
[1745481636557,0.15775687,1756.7,1756.6,7.58167859]
[1745481636758,0.7735,1756.8,1756.6,7.58167859]
[1745481637067,0.15775687,1756.7,1756.6,7.58167859]
[1745481637270,0.7735,1756.8,1756.6,7.58167859]
[1745481637469,0.15775687,1756.7,1756.6,7.58167859]
[1745481637672,0.7735,1756.8,1756.6,1.88886293]
[1745481637970,0.15775687,1756.7,1756.6,7.58158613]
[1745481638143,0.8196,1757.0,1756.6,1.88886293]
[1745481638345,0.15775687,1756.9,1756.5,5.69291029]
[1745481638574,0.8152,1756.8,1756.5,5.69291029]
[1745481638875,0.15775687,1756.7,1756.5,5.69291029]
[1745481641735,0.15775687,1756.7,1756.6,5.69281566]
[1745481642036,5.31519064,1757.1,1756.6,5.69281566]
[1745481642232,0.98925687,1757.0,1756.6,6.83138826]
[1745481642768,0.98925687,1757.0,1756.6,1.1385726]
[1745481642937,0.98925687,1757.0,1756.5,5.69291029]
[1745481643697,0.98925687,1757.0,1756.6,5.6926918]
[1745481643998,0.98925687,1757.0,1756.5,5.69291029]
[1745481644198,0.98925687,1757.0,1756.5,11.3858471]
[1745481644503,0.98925687,1757.0,1756.5,5.69291029]
[1745481644668,0.98925687,1757.0,1756.5,6.98574773]
[1745481645274,0.98925687,1757.0,1756.5,1.29283744]
[1745481645664,0.98925687,1757.0,1756.3,3.0]
[1745481645877,0.98925687,1757.0,1756.3,5.6934995]
[1745481648781,0.15985157,1756.9,1756.7,5.69226116]
[1745481649258,0.15985157,1756.9,1756.7,5.69246936]
[1745481650161,0.15985157,1756.9,1756.6,12.13565617]
[1745481650459,0.15985157,1756.9,1756.7,6.90603388]
[1745481651071,0.15985157,1756.9,1756.7,12.59830688]
[1745481651273,0.15985157,1756.9,1756.8,5.69216757]
[1745481651508,5.8172,1757.1,1756.8,5.69216757]
[1745481651810,0.15500867,1757.0,1756.8,7.25418037]
[1745481652110,0.15500867,1757.0,1756.9,6.41724882]
[1745481652316,0.15500867,1757.0,1756.9,0.72541804]
[1745481652688,0.15500867,1757.0,1756.9,6.41726162]
[1745481654303,6.0911553,1757.4,1757.1,5.69107621]
[1745481654541,0.12067856,1757.3,1757.2,0.7704]
[1745481654700,3.75700096,1757.5,1757.2,7.18244844]
[1745481654899,0.12067856,1757.4,1757.2,1.4915766]
[1745481655100,0.12067856,1757.4,1757.2,7.18234136]
[1745481655281,0.12067856,1757.4,1757.3,5.69054799]
[1745481656216,0.12067856,1757.4,1757.3,6.44083778]
[1745481656415,0.12067856,1757.4,1757.3,7.80315188]
[1745481657115,18.785,1757.6,1757.3,13.49369987]
[1745481657412,0.12067856,1757.5,1757.3,2.11260389]
[1745481657712,0.94497856,1757.5,1757.3,1.3623141]
[1745481657918,0.94497856,1757.5,1757.3,5.69035289]
[1745481658111,0.12067856,1757.5,1757.3,5.69035289]
[1745481658414,0.12067856,1757.5,1757.4,5.69022419]
[1745481658781,0.12067856,1757.5,1757.4,6.46982419]
[1745481658984,4.16078786,1757.7,1757.5,5.68963134]
[1745481659182,0.12067856,1757.6,1757.5,6.90555916]
[1745481659618,0.12067856,1757.6,1757.5,7.65584895]
[1745481660304,0.12067856,1757.6,1757.5,10.65584895]
[1745481661835,0.12067856,1757.6,1757.5,4.21592782]
[1745481662122,0.12067856,1757.6,1757.5,11.46371803]
[1745481662316,0.12067856,1757.6,1757.5,10.65611803]
[1745481662508,0.12067856,1757.6,1757.5,4.21592782]
[1745481662704,0.12067856,1757.6,1757.5,1.21592782]
[1745481662903,0.12067856,1757.6,1757.3,5.69052042]
[1745481663103,0.12067856,1757.6,1757.3,5.69034329]
[1745481664421,0.12067856,1757.6,1757.3,11.38067311]
[1745481664624,0.12067856,1757.6,1757.3,5.69032982]
[1745481664821,0.12067856,1757.6,1757.3,6.90055339]
[1745481665830,0.12067856,1757.6,1757.4,11.38007462]
[1745481666190,0.4037869,1757.7,1757.4,5.69003557]
[1745481666423,0.12557931,1757.6,1757.5,5.68990042]
[1745481668189,0.4037869,1757.7,1757.5,11.37980084]
[1745481668523,0.12557931,1757.6,1757.5,7.65660029]
[1745481668828,0.4037869,1757.7,1757.6,5.68957669]
[1745481669194,0.4037869,1757.7,1757.5,9.9063105]
[1745481669420,0.12557931,1757.6,1757.5,9.9060954]
[1745481669689,0.4037869,1757.7,1757.5,9.9060954]
[1745481669903,0.4037869,1757.7,1757.6,5.68957669]
[1745481670416,0.4037869,1757.7,1757.6,7.249143]
[1745481670820,0.4037869,1757.7,1757.5,6.90608636]
[1745481671122,0.4037869,1757.7,1757.5,6.90607856]
[1745481671524,0.4037869,1757.7,1757.6,5.68957669]
[1745481672023,0.4037869,1757.7,1757.5,12.59578999]
[1745481672231,0.4037869,1757.7,1757.6,5.68957669]
[1745481672402,0.4037869,1757.7,1757.5,12.5958015]
[1745481672607,0.4037869,1757.7,1757.6,1.25958015]
[1745481672804,0.4037869,1757.7,1757.5,5.68966848]
[1745481673005,0.4037869,1757.7,1757.6,5.68957669]
[1745481675133,0.4037869,1757.7,1757.5,5.68966848]
[1745481675514,1.1785869,1757.7,1757.3,2.01372357]
[1745481675696,1.1785869,1757.7,1757.2,5.69068786]
[1745481675903,0.12645236,1757.6,1757.3,5.69044802]
[1745481676440,0.12645236,1757.6,1757.4,5.69020062]
[1745481676737,0.12645236,1757.6,1757.5,5.68990042]
[1745481676942,0.12645236,1757.6,1757.5,6.98153047]
[1745481677128,0.4037869,1757.7,1757.6,5.68957669]
[1745481677901,0.4037869,1757.7,1757.5,6.98153047]
[1745481678338,0.4037869,1757.7,1757.6,5.68957669]
[1745481680857,0.4037869,1757.7,1757.6,6.43986648]
[1745481681064,0.4037869,1757.7,1757.6,11.54518451]
[1745481688265,0.4037869,1757.7,1757.6,12.33601803]
[1745481690080,0.4037869,1757.7,1757.6,13.08630782]
[1745481690372,5.013,1758.2,1758.1,5.68795859]
[1745481690529,5.013,1758.2,1758.1,6.82556768]
[1745481690730,0.12000213,1758.2,1758.1,10.63296768]
[1745481690925,0.7918,1758.7,1758.1,1.94500909]
[1745481691135,0.12000213,1758.6,1758.1,11.37562343]
[1745481691430,0.7918,1758.5,1758.3,5.68709658]
[1745481691843,0.12099095,1758.4,1758.3,5.68709658]
[1745481694765,0.8024,1758.7,1758.5,5.68654658]
[1745481694944,0.8024,1758.9,1758.6,5.6863414]
[1745481695144,0.8024,1758.9,1758.7,6.25462003]
[1745481695383,0.8024,1758.9,1758.8,5.68569479]
[1745481696141,3.75700096,1759.1,1758.9,5.68537153]
[1745481696379,3.75700096,1759.1,1759.0,6.43533811]
[1745481696880,0.8024,1759.2,1759.1,5.68472514]
[1745481697077,0.8024,1759.2,1759.0,7.07887192]
[1745481697374,0.8024,1759.2,1759.0,0.64353381]
[1745481697576,0.8024,1759.2,1759.0,6.32857582]
[1745481698277,0.8024,1759.2,1759.1,5.68472514]
[1745481698473,0.8232,1759.4,1759.1,5.68448682]
[1745481698879,0.8232,1759.4,1759.3,5.68407889]
[1745481699194,4.16078786,1759.5,1759.3,5.68407889]
[1745481699646,4.16078786,1759.5,1759.2,0.75028979]
[1745481699793,4.16078786,1759.5,1759.3,5.68407889]
[1745481700105,4.16078786,1759.5,1759.4,5.68375582]
[1745481701299,4.16078786,1759.5,1759.2,11.36837829]
[1745481701798,4.16078786,1759.5,1759.3,5.68405613]
[1745481702499,0.4037869,1759.5,1759.2,5.68424827]
[1745481702999,0.4037869,1759.5,1759.1,6.39236396]
[1745481703196,0.8295,1759.4,1759.0,0.64353381]
[1745481703400,0.8295,1759.4,1759.0,5.68494735]
[1745481703600,0.8295,1759.4,1758.9,5.68515703]
[1745481705608,0.8295,1759.4,1758.9,8.68537153]
[1745481705902,0.8295,1759.4,1758.7,0.56863414]
[1745481706103,0.8295,1759.4,1758.5,1.58613352]
[1745481706104,0.7635,1759.3,1758.6,5.68614819]
[1745481706288,5.7705,1759.2,1758.5,5.68650847]
[1745481706488,5.7705,1759.2,1758.4,0.75028979]
[1745481706489,0.7635,1759.1,1758.4,0.75028979]
[1745481706700,0.7635,1759.0,1758.4,5.6869297]
[1745481707994,0.7635,1759.0,1758.4,11.37381064]
[1745481708199,0.7635,1759.0,1758.5,5.68641626]
[1745481708380,0.7635,1759.0,1758.5,6.43670605]
[1745481710614,0.7635,1759.0,1758.6,5.68622615]
[1745481711005,0.824,1759.2,1758.9,6.43546291]
[1745481711204,0.824,1759.2,1758.9,12.12061399]
[1745481711399,0.824,1759.2,1758.9,7.64750227]
[1745481711627,0.824,1759.2,1758.8,3.0]
[1745481711826,0.824,1759.2,1758.8,8.68556639]
[1745481712421,0.824,1759.2,1758.8,5.68546789]
[1745481713123,0.824,1759.2,1758.7,5.6860129]
[1745481713425,0.824,1759.2,1758.7,5.68579854]
[1745481713809,5.007,1759.2,1758.7,5.68579854]
[1745481714009,0.7626,1759.1,1758.6,5.68618914]
[1745481714508,0.7626,1759.1,1758.6,11.37232951]
[1745481714715,0.7626,1759.1,1758.6,5.68614037]
[1745481715036,5.68554108,1758.9,1758.2,1.56596685]
[1745481715232,5.007,1758.8,1758.3,6.43737668]
[1745481715525,0.7816,1758.7,1758.3,6.43737668]
[1745481717486,0.7816,1758.7,1758.5,0.75028979]
[1745481717685,0.7816,1758.7,1758.3,6.43750899]
[1745481718027,0.7816,1758.7,1758.4,5.68698097]
[1745481718333,0.7816,1758.7,1758.4,6.89942997]
[1745481718548,0.7816,1758.7,1758.4,6.89928344]
[1745481719056,0.7816,1758.7,1758.4,1.212449]
[1745481719552,0.7816,1758.7,1758.4,6.89933874]
[1745481719915,0.7816,1758.7,1758.6,0.64368037]
[1745481720250,0.7816,1758.7,1758.5,0.75028979]
[1745481720450,0.7816,1758.7,1758.4,6.89923141]
[1745481721744,0.7816,1758.7,1758.5,6.43684087]
[1745481721928,0.7816,1758.7,1758.5,6.43676237]
[1745481722659,5.793,1758.9,1758.6,5.6863414]
[1745481722827,5.793,1758.9,1758.6,6.33000452]
[1745481723127,5.793,1758.9,1758.6,0.64366312]
[1745481723545,5.793,1758.9,1758.5,0.75028979]
[1745481724050,5.793,1758.9,1758.5,6.43686098]
[1745481726470,5.793,1758.9,1758.6,5.68616941]
[1745481726677,5.793,1758.9,1758.6,11.37233882]
[1745481727870,5.793,1758.9,1758.7,5.68583775]
[1745481728075,0.8211,1759.1,1758.8,0.56858378]
[1745481728278,5.8271,1759.1,1758.8,0.56858378]
[1745481728574,0.8211,1759.1,1758.9,6.43551207]
[1745481728774,0.8211,1759.1,1758.7,7.19904973]
[1745481728979,0.8211,1759.1,1758.8,5.6856022]
[1745481730087,0.8211,1759.1,1758.7,1.51318979]
[1745481730245,0.8211,1759.1,1758.9,5.6852629]
[1745481730577,0.8211,1759.1,1758.9,6.82233941]
[1745481731382,0.8211,1759.1,1758.9,1.13707651]
[1745481731886,0.29680521,1759.2,1759.1,5.68472514]
[1745481732070,0.7532,1759.4,1759.1,5.68455484]
[1745481732391,0.70054797,1759.5,1759.1,5.68457795]
[1745481732690,0.70054797,1759.5,1759.2,6.2526539]
[1745481733049,0.70054797,1759.5,1759.3,5.68405007]
[1745481733249,0.70054797,1759.5,1759.2,11.93685373]
[1745481733452,0.70054797,1759.5,1759.4,5.68375582]
[1745481733656,0.4037869,1759.5,1759.3,5.68389904]
[1745481733964,0.4037869,1759.5,1759.4,6.25214572]
[1745481734799,0.4037869,1759.5,1759.4,0.5683899]
[1745481735594,0.4037869,1759.5,1759.4,6.25214572]
[1745481738200,0.4037869,1759.5,1759.4,0.5683899]
[1745481738488,0.4037869,1759.5,1759.4,6.25214572]
[1745481739872,0.4037869,1759.5,1759.4,7.06504572]